bitfinex/quotes_ETHUSD_20241212
["timestamp","ask_amount","ask_price","bid_price","bid_amount"]
[1733985823567,0.7923,3928.2,3927.0,3.67478746]
[1733985823568,0.55,3927.9,3927.0,3.67478746]
[1733985823863,0.55,3927.7,3927.0,0.67478746]
[1733985824187,2.81103416,3928.7,3926.7,0.50234327]
[1733985824188,0.55,3927.5,3926.7,0.50234327]
[1733985824503,0.55,3927.3,3926.7,0.50234327]
[1733985826269,0.55,3927.1,3926.7,0.50234327]
[1733985827366,0.55,3927.1,3926.6,3.0]
[1733985827672,0.55,3927.1,3926.5,0.67478746]
[1733985828464,0.55,3927.1,3926.5,1.18445148]
[1733985830193,0.55,3927.1,3926.5,2.24454531]
[1733985830352,0.55,3927.1,3926.5,1.91998719]
[1733985831907,0.55,3927.1,3926.5,1.9454525]
[1733985832188,0.55,3927.1,3926.5,1.91998719]
[1733985832403,0.55,3927.1,3926.5,1.94545265]
[1733985832605,0.55,3927.1,3926.7,3.0]
[1733985834863,0.55,3927.1,3926.6,4.40565277]
[1733985835094,0.26560465,3927.2,3926.7,0.35022934]
[1733985835387,0.26560465,3927.2,3927.0,2.54644]
[1733985837693,0.26560465,3927.2,3926.7,7.09100424]
[1733985837871,0.55,3927.1,3926.7,2.07425436]
[1733985838071,0.55,3927.1,3926.7,4.74969624]
[1733985838486,0.55,3927.1,3926.7,1.74969624]
[1733985840376,0.55,3927.1,3926.5,0.50966402]
[1733985840575,0.7742,3927.0,3926.5,0.50966402]
[1733985842980,0.7742,3927.0,3926.6,3.0]
[1733985843230,0.7742,3927.0,3926.7,2.54665]
[1733985844547,0.7742,3927.0,3926.8,2.5466]
[1733985844697,0.55,3927.1,3926.8,2.89682934]
[1733985844899,0.26560465,3927.2,3926.9,2.54652]
[1733985845518,0.26560465,3927.2,3926.9,2.57198217]
[1733985845722,0.26560465,3927.2,3926.9,2.54652]
[1733985846004,0.26560465,3927.2,3926.9,3.52471402]
[1733985847695,0.26560465,3927.2,3926.7,3.0]
[1733985847959,0.55,3926.9,3926.5,1.06229416]
[1733985848237,0.55,3926.9,3926.7,3.0]
[1733985848613,0.81499388,3926.8,3926.7,3.0]
[1733985848995,0.26499388,3926.8,3926.7,3.0]
[1733985849200,0.26499388,3926.8,3926.7,6.58384802]
[1733985849541,0.26499388,3926.8,3926.7,7.64614218]
[1733985850528,0.26499388,3926.8,3926.7,8.43724218]
[1733985850698,0.26499388,3926.8,3926.7,8.7618003]
[1733985852620,0.26499388,3926.8,3926.7,8.76380899]
[1733985853023,0.26499388,3926.8,3926.7,7.69950614]
[1733985853433,0.26499388,3926.8,3926.7,8.76380899]
[1733985853612,0.26499388,3926.8,3926.7,7.69950614]
[1733985853815,0.26499388,3926.8,3926.7,8.76380899]
[1733985854211,0.26499388,3926.8,3926.7,7.69950614]
[1733985854633,0.26499388,3926.8,3926.7,10.79665933]
[1733985854837,0.26499388,3926.8,3926.7,7.69950614]
[1733985855238,0.26499388,3926.8,3926.7,10.79665643]
[1733985855433,0.26499388,3926.8,3926.7,10.79668274]
[1733985856039,0.26499388,3926.8,3926.7,9.2032415]
[1733985856254,0.26499388,3926.8,3926.7,11.33123458]
[1733985856416,0.26499388,3926.8,3926.7,9.2032415]
[1733985857248,2.08320762,3929.0,3927.1,3.7911]
[1733985857249,0.8212,3928.6,3927.1,3.7911]
[1733985857435,0.8212,3928.6,3927.7,3.0]
[1733985857638,0.8212,3928.6,3928.0,2.54581]
[1733985857839,0.8212,3928.6,3927.9,3.0]
[1733985857840,0.26570782,3928.5,3927.9,3.0]
[1733985858040,0.26570782,3928.5,3927.9,3.35022934]
[1733985858256,0.26570782,3928.5,3928.3,2.5456]
[1733985858956,0.55,3928.4,3928.3,2.5456]
[1733985863430,0.26570782,3928.5,3928.3,2.5456]
[1733985864663,0.26570782,3928.5,3928.4,0.25456]
[1733985865168,0.26570782,3928.5,3928.4,7.26953515]
[1733985865465,0.26570782,3928.5,3928.4,10.6735396]
[1733985865631,0.8317,3929.7,3929.2,2.54502]
[1733985865833,0.26562753,3929.3,3929.2,2.54502]
[1733985867468,0.26562753,3929.3,3929.0,3.832]
[1733985867637,0.26562753,3929.3,3929.1,2.54509]
[1733985871172,0.26562753,3929.3,3928.5,2.54547]
[1733985871173,1.3817,3929.2,3928.3,0.51866132]
[1733985871359,1.54643275,3929.2,3928.4,2.54555]
[1733985871559,1.54643275,3929.2,3928.3,0.51866132]
[1733985871560,0.55,3929.0,3928.3,0.51866132]
[1733985871771,0.16473275,3929.2,3928.1,5.35300262]
[1733985871772,0.55,3928.8,3928.1,2.54571]
[1733985872173,0.55,3928.8,3928.1,2.89593934]
[1733985872473,0.55,3928.8,3928.5,2.54547]
[1733985872671,0.8317,3928.9,3928.5,2.54547]
[1733985873464,0.8317,3928.9,3928.2,1.18022281]
[1733985873644,0.8317,3928.9,3928.4,2.54554]
[1733985874467,0.8317,3928.9,3928.5,2.54549]
[1733985876781,1.3817,3929.2,3928.5,2.54549]
[1733985876944,1.3817,3929.2,3928.8,2.54529]
[1733985878473,1.3817,3929.2,3927.6,2.54608]
[1733985878474,0.8317,3929.1,3927.6,2.54608]
[1733985878798,0.55,3928.5,3927.4,2.54621]
[1733985879347,0.8317,3928.4,3927.4,2.54621]
[1733985879547,0.55,3928.3,3927.3,5.85670103]
[1733985879897,0.55,3928.3,3927.4,2.5462]
[1733985880695,0.55,3928.3,3927.5,3.0]
[1733985881196,0.55,3928.1,3927.5,3.0]
[1733985882487,0.55,3928.1,3927.4,3.0]
[1733985882822,0.55,3927.9,3927.3,0.50315841]
[1733985886100,0.55,3927.9,3927.3,3.04941841]
[1733985888919,0.55,3927.9,3927.3,0.50315841]
[1733985889885,0.8317,3927.8,3927.3,0.50315841]
[1733985890091,0.55,3927.7,3927.3,0.50315841]
[1733985891416,0.68817,3927.7,3926.9,3.0]
[1733985891744,0.55,3927.7,3926.9,3.0]
[1733985892044,0.55,3927.7,3927.4,2.80729262]
[1733985896541,0.26564059,3927.6,3927.4,2.80729262]
[1733985896699,0.26564059,3927.6,3927.4,3.64265588]
[1733985896903,0.26564059,3927.6,3927.5,5.54614]
[1733985898732,0.26564059,3927.6,3927.5,6.05847632]
[1733985899140,0.26564059,3927.6,3927.5,6.04568096]
[1733985901754,0.26564059,3927.6,3927.5,5.53334464]
[1733985901904,0.26564059,3927.6,3927.5,6.63362345]
[1733985905010,0.26564059,3927.6,3927.5,10.81304498]
[1733985905214,0.26564059,3927.6,3927.5,10.81333035]
[1733985905415,5.9e-07,3927.6,3927.5,11.34793823]
[1733985905750,1.58420406,3930.3,3927.5,11.34793823]
[1733985905751,0.7566,3929.4,3928.2,3.0]
[1733985905935,0.7566,3929.4,3928.6,3.0]
[1733985907150,0.55,3929.3,3928.6,3.0]
[1733985910255,0.7763,3928.9,3928.1,2.80729262]
[1733985910453,0.55,3928.6,3927.7,2.80729262]
[1733985910679,0.55,3928.6,3927.7,6.0942167]
[1733985911681,0.55,3928.6,3927.8,3.0]
[1733985912282,0.55,3928.6,3927.8,3.51835456]
[1733985912782,2.54491,3929.5,3927.7,2.80729262]
[1733985912783,0.7763,3928.3,3927.7,2.80729262]
[1733985913080,0.68263,3928.2,3927.7,2.80729262]
[1733985913445,0.55,3928.0,3927.3,2.80729262]
[1733985913645,0.55,3927.8,3927.3,2.80729262]
[1733985915666,0.55,3927.8,3927.4,3.0]
[1733985917211,0.55,3927.8,3927.2,0.50044518]
[1733985917508,0.55,3927.6,3927.2,0.50044518]
[1733985917709,0.55,3927.8,3927.2,0.50044518]
[1733985918110,0.7763,3927.7,3927.2,0.50044518]
[1733985918301,0.55,3927.6,3927.2,0.50044518]
[1733985919711,0.55,3927.6,3926.9,2.80729262]
[1733985919923,0.55,3927.5,3926.9,2.80729262]
[1733985920128,0.55,3927.3,3926.5,2.80729262]
[1733985920325,0.7763,3927.4,3926.2,1.06144044]
[1733985920326,0.55,3927.1,3926.2,1.06144044]
[1733985920528,0.55,3926.9,3926.0,3.86873306]
[1733985920686,0.55,3926.9,3926.0,2.80729262]
[1733985921120,0.55,3926.7,3926.0,2.80729262]
[1733985921623,0.55,3926.7,3926.1,3.0]
[1733985923714,0.55,3926.7,3926.1,5.54703]
[1733985926004,0.55,3926.7,3926.1,3.0]
[1733985926205,0.764,3926.6,3926.1,3.0]
[1733985926557,0.55,3926.5,3925.6,2.80729262]
[1733985926838,0.55,3926.5,3925.6,5.35466262]
[1733985927038,0.55,3926.5,3925.6,5.86974742]
[1733985927334,0.55,3926.5,3925.6,6.76173905]
[1733985927739,0.55,3926.5,3925.7,3.0]
[1733985928624,0.764,3926.6,3925.7,3.0]
[1733985928625,0.55,3926.3,3925.7,3.0]
[1733985931669,0.55,3926.3,3925.8,2.54724]
[1733985931871,0.55,3926.3,3926.0,2.80729262]
[1733985932173,0.26561307,3926.8,3926.1,3.7776]
[1733985932338,0.26561307,3926.8,3926.6,2.80729262]
[1733985932535,0.26561307,3926.8,3926.7,3.0]
[1733985933791,0.81561307,3926.8,3926.7,3.0]
[1733985936692,0.81561307,3926.8,3926.3,3.0]
[1733985936693,1.314,3926.7,3926.3,3.0]
[1733985937416,0.764,3926.7,3926.3,3.0]
[1733985937563,0.26561307,3926.8,3926.6,2.80729262]
[1733985937765,0.26561307,3926.8,3926.7,3.0]
[1733985940764,0.26561307,3926.8,3926.7,3.50384577]
[1733985942071,0.26561307,3926.8,3926.7,3.0]
[1733985944781,0.26561307,3926.8,3926.4,3.0]
[1733985945543,0.26561307,3926.8,3926.6,3.0]
[1733985946104,0.26561307,3926.8,3926.6,2.634]
[1733985948336,0.26561307,3926.8,3926.7,5.80729262]
[1733985948863,0.26561307,3926.8,3926.7,8.35395262]
[1733985955463,0.26561307,3926.8,3926.7,5.80729262]
[1733985959460,0.26561307,3926.8,3926.7,9.41539306]
[1733985959768,0.26561307,3926.8,3926.7,5.80729262]
[1733985964976,0.26561307,3926.8,3926.7,6.86873306]
[1733985965182,0.26561307,3926.8,3926.7,9.41539306]
[1733985965371,0.26561307,3926.8,3926.7,13.106183]
[1733985965801,0.26561307,3926.8,3926.7,12.32078527]
[1733985966002,0.26561307,3926.8,3926.7,9.20004199]
[1733985966167,0.26561307,3926.8,3926.7,12.32074225]
[1733985967170,0.26561307,3926.8,3926.7,10.72207931]
[1733985969824,0.26561307,3926.8,3926.7,12.32056123]
[1733985970123,0.26561307,3926.8,3926.7,11.47448655]
[1733985970424,0.26561307,3926.8,3926.7,8.35395262]
[1733985970788,0.26561307,3926.8,3926.6,1.59849661]
[1733985971088,0.26561307,3926.8,3926.7,3.0]
[1733985971294,0.26561307,3926.8,3926.7,1.06572112]
[1733985973702,0.26561307,3926.8,3926.7,4.06572112]
[1733985974024,0.26561307,3926.8,3926.7,1.06572112]
[1733985974437,0.26561307,3926.8,3926.7,3.35546]
[1733985974592,0.26561307,3926.8,3926.7,10.04465288]
[1733985974788,0.26561307,3926.8,3926.7,12.6836937]
[1733985975015,3.07e-06,3926.8,3926.7,11.93996432]
[1733985975517,0.23791505,3928.7,3927.7,0.8088]
[1733985975739,0.23791505,3928.6,3928.0,2.80729262]
[1733985975927,0.26570332,3928.6,3928.2,1.06598079]
[1733985976125,0.8281,3928.8,3928.2,1.06598079]
[1733985976547,0.26571105,3928.5,3928.2,1.06598079]
[1733985976749,0.8281,3928.8,3928.1,4.06598079]
[1733985977639,0.8281,3928.8,3928.1,3.0]
[1733985977847,0.36110189,3928.7,3928.1,3.0]
[1733985978031,0.55,3928.7,3928.1,3.0]
[1733985978951,0.55,3928.7,3928.0,2.80729262]
[1733985981564,0.55,3928.7,3928.4,2.80729262]
[1733985981762,0.8281,3928.8,3928.4,5.35281262]
[1733985982059,0.8281,3929.2,3928.5,2.54548]
[1733985982228,0.8281,3929.2,3928.8,2.80729262]
[1733985984335,0.55,3929.1,3928.8,2.80729262]
[1733985986382,0.55,3929.1,3928.4,2.80729262]
[1733985988442,0.7923,3929.2,3928.4,2.80729262]
[1733985989377,0.7923,3929.2,3928.4,5.35284262]
[1733985990073,0.7923,3929.2,3928.4,2.80729262]
[1733985990286,1.3423,3929.5,3928.9,2.5452]
[1733985991283,1.3423,3929.5,3928.8,2.80729262]
[1733985991483,1.3423,3929.5,3928.8,5.35257262]
[1733985991883,0.7923,3929.5,3929.0,2.54517]
[1733985992084,0.7923,3929.8,3929.3,2.54496]
[1733985992288,0.7923,3929.8,3929.6,2.80729262]
[1733985992450,0.26565256,3929.7,3929.6,2.80729262]
[1733985993891,0.26565256,3929.7,3929.6,5.80729262]
[1733985994185,0.7923,3930.4,3929.7,2.54471]
[1733985994408,0.7923,3930.4,3930.0,2.80729262]
[1733985994784,0.55,3930.3,3930.0,2.80729262]
[1733985994989,0.55,3930.3,3929.6,5.80729262]
[1733985996708,0.7923,3930.0,3929.2,2.80729262]
[1733985996897,0.55,3929.7,3928.8,3.31179354]
[1733985997098,0.55,3929.3,3928.4,2.80729262]
[1733985997498,0.55,3929.3,3928.6,0.49951543]
[1733985998319,0.55,3929.3,3928.5,3.0]
[1733985999109,0.55,3929.3,3928.5,5.54548]
[1733985999490,0.55,3929.3,3928.5,4.42710735]
[1733985999808,0.55,3929.3,3928.8,2.80729262]
[1733986001490,0.7923,3929.2,3928.5,0.51320009]
[1733986001702,0.55,3929.1,3928.5,0.51320009]
[1733986002027,0.55,3929.1,3928.4,5.80729262]
[1733986002233,0.938722,3929.1,3928.4,5.80729262]
[1733986003557,0.938722,3929.1,3928.4,6.31051054]
[1733986003558,0.55,3929.1,3928.4,6.31051054]
[1733986005797,0.55,3928.9,3928.0,0.7863]
[1733986005998,0.55,3928.7,3928.0,2.80729262]
[1733986006194,0.55,3928.7,3928.1,3.0]
[1733986006815,0.55,3928.7,3928.2,0.7503]
[1733986007237,0.55,3928.8,3928.1,3.49836422]
[1733986007600,0.55,3928.8,3928.1,3.0]
[1733986008210,0.822,3928.7,3928.1,3.0]
[1733986008413,0.55,3928.6,3927.8,3.0]
[1733986008701,0.55,3928.6,3927.8,2.80729262]
[1733986009295,0.55,3928.6,3927.8,5.35323262]
[1733986009495,0.26568867,3928.5,3927.8,5.35323262]
[1733986010318,0.55,3928.4,3927.8,5.35323262]
[1733986010800,0.55,3928.4,3928.0,2.54581]
[1733986011203,0.55,3928.4,3927.8,2.80729262]
[1733986011658,0.55,3928.4,3927.8,5.35324262]
[1733986013407,0.55,3928.4,3927.8,2.80729262]
[1733986013607,0.26568867,3928.5,3928.2,2.80729262]
[1733986014140,0.26568867,3928.5,3928.4,5.54556]
[1733986016524,0.7508,3929.4,3928.6,2.54538]
[1733986016745,0.55,3929.3,3928.7,2.80729262]
[1733986017164,0.55,3929.3,3928.7,5.35261262]
[1733986018403,0.55,3929.3,3928.8,2.5453]
[1733986019404,0.55,3929.3,3928.9,2.54523]
[1733986019610,0.55,3929.3,3929.0,2.54517]
[1733986019914,0.7508,3929.4,3929.0,2.54517]
[1733986020643,0.7508,3929.4,3928.7,6.41859341]
[1733986020858,0.7508,3929.4,3928.8,2.5453]
[1733986021006,0.7508,3929.4,3928.7,2.80729262]
[1733986021007,0.7508,3929.4,3928.9,2.5452]
[1733986022138,0.55,3929.3,3928.7,5.35265262]
[1733986022511,0.71992336,3929.3,3928.5,1.06598079]
[1733986022716,0.71992336,3929.3,3928.5,3.0]
[1733986024018,0.71992336,3929.3,3928.5,2.54549]
[1733986025252,0.55,3929.3,3928.6,2.54542]
[1733986025469,0.55,3929.3,3928.8,2.54525]
[1733986025653,0.55,3929.3,3928.5,3.61142079]
[1733986026055,0.55,3929.3,3928.5,2.54544]
[1733986026572,0.55,3929.3,3928.4,7.17705718]
[1733986026738,0.55,3929.3,3928.3,1.34168685]
[1733986026739,0.8021,3929.0,3928.3,4.06598079]
[1733986026938,0.55,3928.9,3928.2,4.06598079]
[1733986029784,0.55,3928.9,3928.4,2.80729262]
[1733986030072,0.55,3928.9,3928.4,6.41883341]
[1733986030871,0.55,3928.9,3928.4,3.87327341]
[1733986031184,0.55,3928.9,3928.4,2.80729262]
[1733986031330,0.55,3928.9,3928.4,3.87327341]
[1733986031836,0.8021,3929.0,3928.4,2.80729262]
[1733986032173,0.26565711,3928.8,3928.4,2.80729262]
[1733986037332,0.26565711,3928.8,3928.3,1.06598079]
[1733986037551,0.7599,3928.7,3928.1,4.06598079]
[1733986037753,0.7599,3928.7,3928.1,1.06598079]
[1733986038067,0.35707971,3928.6,3928.0,0.5003943]
[1733986038266,0.7599,3928.7,3928.0,0.5003943]
[1733986039335,0.7599,3928.7,3928.2,2.54569]
[1733986039972,0.7599,3928.7,3928.0,1.56637509]
[1733986040372,0.7599,3928.7,3928.0,0.5003943]
[1733986041577,0.7599,3928.7,3928.0,1.56637509]
[1733986042012,0.7599,3928.7,3928.2,2.54566]
[1733986042591,0.26565711,3928.8,3928.5,2.54549]
[1733986043092,0.26565711,3928.8,3928.5,3.61147079]
[1733986043862,0.26565711,3928.8,3928.5,1.06598079]
[1733986044072,0.26565711,3928.8,3928.4,1.06598079]
[1733986044653,0.26565711,3928.8,3928.5,1.06598079]
[1733986045056,0.26565711,3928.8,3928.3,4.59897119]
[1733986045057,0.26565711,3928.8,3928.4,1.06598079]
[1733986046047,0.26565711,3928.8,3928.4,3.61152079]
[1733986046243,0.26565711,3928.8,3928.5,1.06598079]
[1733986046480,0.8071,3928.7,3928.5,1.06598079]
[1733986046691,0.8071,3928.7,3928.3,1.06598079]
[1733986047571,0.8071,3928.7,3928.4,1.06598079]
[1733986048350,0.8071,3928.7,3928.2,4.14466119]
[1733986048351,0.8071,3928.7,3928.3,1.06598079]
[1733986048552,0.8071,3928.7,3928.2,1.06598079]
[1733986051254,0.8071,3928.7,3928.1,1.06598079]
[1733986051454,0.8071,3928.7,3928.0,2.09936549]
[1733986051455,0.8071,3928.7,3928.0,1.56637509]
[1733986051992,0.2378884,3928.6,3928.0,1.56637509]
[1733986052155,0.8071,3928.7,3928.0,0.5003943]
[1733986052354,0.23789398,3928.6,3928.0,0.5003943]
[1733986052592,0.8071,3928.7,3928.0,0.5003943]
[1733986053075,0.23789595,3928.6,3928.0,0.5003943]
[1733986053276,0.8071,3928.7,3928.0,0.5003943]
[1733986053585,0.23787881,3928.6,3928.0,0.5003943]
[1733986053789,0.13106359,3928.6,3928.0,0.5003943]
[1733986054302,0.13106359,3928.6,3927.9,1.06598079]
[1733986054782,0.13282187,3928.5,3927.9,1.06598079]
[1733986055153,0.13282187,3928.5,3928.2,1.32246563]
[1733986057374,0.8071,3928.7,3928.2,1.32246563]
[1733986057595,0.8071,3928.7,3928.5,1.32246563]
[1733986058767,0.13282311,3928.9,3928.5,3.86792563]
[1733986058973,0.13282311,3928.9,3928.8,1.32246563]
[1733986059785,0.8071,3929.0,3928.8,1.32246563]
[1733986059974,1.3571,3929.6,3928.8,1.32246563]
[1733986060269,0.13281792,3929.4,3928.8,1.32246563]
[1733986060460,0.23779338,3929.3,3928.8,1.32246563]
[1733986060679,0.23779338,3929.2,3928.8,1.32246563]
[1733986060882,0.13281792,3929.4,3928.8,1.32246563]
[1733986061190,0.23777775,3929.3,3928.8,1.32246563]
[1733986061381,0.23777775,3929.2,3928.8,1.32246563]
[1733986061580,0.13281792,3929.4,3928.8,1.32246563]
[1733986061783,0.42674604,3929.3,3928.8,1.32246563]
[1733986061961,0.8071,3929.1,3928.7,1.32246563]
[1733986062362,0.8071,3929.1,3928.4,1.06598079]
[1733986062363,0.18898888,3929.3,3928.6,1.06598079]
[1733986062659,0.23774914,3929.2,3928.6,2.38844642]
[1733986062877,0.18898888,3929.3,3928.6,2.38844642]
[1733986063076,0.3906374,3929.2,3928.6,1.32246563]
[1733986063297,0.15288777,3929.2,3928.6,2.38844642]
[1733986064918,0.15288777,3929.2,3928.6,1.32246563]
[1733986065083,0.15288777,3929.2,3928.6,2.38844642]
[1733986065580,0.15288777,3929.2,3928.7,1.06598079]
[1733986065787,0.18898888,3929.3,3928.7,1.06598079]
[1733986065788,0.18898888,3929.3,3928.7,3.61133079]
[1733986066293,0.93991792,3929.4,3928.7,3.61133079]
[1733986066806,0.8071,3929.4,3928.7,3.61133079]
[1733986066974,0.8071,3929.4,3928.9,1.32246563]
[1733986067295,2.11227208,3930.2,3928.9,1.32246563]
[1733986067296,1.07277954,3929.7,3929.2,1.32246563]
[1733986067665,0.8071,3929.7,3929.2,4.93347642]
[1733986067865,0.8071,3929.7,3929.5,1.32246563]
[1733986068086,0.8071,3930.2,3929.5,1.32246563]
[1733986068307,0.23766751,3930.1,3929.5,1.32246563]
[1733986068596,1.15184401,3930.2,3929.5,3.86729563]
[1733986068927,0.8071,3930.2,3929.5,3.86729563]
[1733986071188,0.8071,3930.2,3929.3,1.06598079]
[1733986071189,0.8071,3930.2,3929.8,1.32246563]
[1733986075582,0.7658,3930.0,3928.9,1.06598079]
[1733986075786,0.7658,3930.0,3928.7,1.59897119]
[1733986075787,0.7658,3929.4,3928.7,1.32246563]
[1733986075989,0.55,3929.3,3928.7,1.32246563]
[1733986076199,0.386069,3929.2,3928.7,1.32246563]
[1733986076668,0.13282119,3929.1,3928.7,1.32246563]
[1733986077158,0.13282119,3929.1,3928.3,0.7818]
[1733986078661,0.13282119,3929.1,3928.1,3.0]
[1733986078662,0.7658,3929.0,3928.1,3.0]
[1733986078956,2.54525,3928.9,3928.0,2.80990059]
[1733986079132,0.34438712,3928.8,3928.0,2.80990059]
[1733986079336,2.54545,3928.6,3927.6,4.65768138]
[1733986079554,2.54545,3928.6,3927.6,3.59170059]
[1733986082359,0.7658,3928.7,3927.6,3.59170059]
[1733986082925,1.00283632,3928.7,3927.6,3.59170059]
[1733986083132,0.62050509,3928.6,3927.6,3.59170059]
[1733986083544,0.26568946,3928.6,3927.6,3.59170059]
[1733986085085,2.81113946,3928.6,3927.6,3.59170059]
[1733986085240,3.31132,3928.5,3927.6,2.80990059]
[1733986085571,3.31132,3928.5,3927.0,1.84778079]
[1733986085572,0.7658,3928.5,3927.0,1.84778079]
[1733986085774,0.7658,3928.1,3927.0,4.65768138]
[1733986085972,0.7658,3928.1,3927.3,2.54627]
[1733986086475,0.26568946,3928.6,3927.8,2.80990059]
[1733986086476,0.7658,3928.5,3927.8,2.80990059]
[1733986086778,0.7658,3928.5,3927.6,2.54607]
[1733986087148,0.7658,3928.5,3927.5,3.7818]
[1733986088169,0.26568946,3928.6,3928.0,0.7936]
[1733986088368,0.26568946,3928.6,3928.1,2.54575]
[1733986089003,0.26568946,3928.6,3928.2,2.80990059]
[1733986089202,0.26568946,3928.6,3928.3,2.54562]
[1733986089866,0.26568946,3928.6,3928.4,2.54552]
[1733986090364,0.26568946,3928.6,3928.5,3.7936]
[1733986090551,0.26568946,3928.6,3928.5,4.85958079]
[1733986090872,0.26568946,3928.6,3928.5,4.97499726]
[1733986091886,0.26568946,3928.6,3928.5,4.18139726]
[1733986092095,0.26568946,3928.6,3928.5,3.0]
[1733986095464,0.26568946,3928.6,3928.3,3.0]
[1733986095992,0.26568946,3928.6,3928.2,2.80990059]
[1733986098508,0.26568946,3928.6,3928.3,0.02545483]
[1733986098821,0.26568946,3928.6,3928.4,2.54554]
[1733986098966,0.26568946,3928.6,3928.5,4.29814406]
[1733986100797,0.26568946,3928.6,3928.3,3.0]
[1733986102483,1.02548946,3928.6,3928.3,3.0]
[1733986103260,0.26568946,3928.6,3928.4,2.54555]
[1733986103485,0.26568946,3928.6,3928.4,3.31555]
[1733986106486,0.26568946,3928.6,3928.3,3.0]
[1733986106794,0.26568946,3928.6,3928.3,5.5456]
[1733986107159,0.26568946,3928.6,3928.4,2.54552]
[1733986107364,0.26568946,3928.6,3928.4,3.56442803]
[1733986107912,0.26568946,3928.6,3928.5,3.0]
[1733986111502,0.26568946,3928.6,3928.5,2.5455]
[1733986111706,0.26568946,3928.6,3928.5,5.5455]
[1733986112569,0.26568946,3928.6,3928.5,2.5455]
[1733986113103,0.26568946,3928.6,3928.5,8.28285362]
[1733986113306,0.26568946,3928.6,3928.5,11.45955252]
[1733986113513,0.26568946,3928.6,3928.5,13.02552398]
[1733986113802,0.26568946,3928.6,3928.5,11.42655279]
[1733986115290,9.46e-06,3928.6,3928.5,12.14155001]
[1733986115595,1.58420406,3930.9,3928.5,12.14155001]
[1733986115596,0.7598,3930.0,3928.8,0.55]
[1733986115800,0.7598,3930.0,3929.5,2.8083846]
[1733986116001,0.13276616,3930.2,3929.6,2.54475]
[1733986116389,0.13276616,3930.2,3929.7,2.54471]
[1733986116589,0.13276616,3930.2,3929.5,5.3532046]
[1733986116820,0.13276616,3930.2,3929.5,2.8083846]
[1733986118927,0.99752267,3930.1,3929.2,3.0]
[1733986119129,0.7598,3930.1,3929.2,3.0]
[1733986119331,0.7598,3929.9,3929.2,3.0]
[1733986121249,0.7598,3929.7,3928.5,1.06291682]
[1733986121462,0.7598,3929.5,3928.5,2.8083846]
[1733986121726,0.330459,3929.4,3928.5,2.8083846]
[1733986122727,0.330459,3929.4,3928.6,3.0]
[1733986122916,0.7802,3929.2,3928.6,3.0]
[1733986123120,0.7802,3929.1,3928.6,3.0]
[1733986123428,3.32533,3929.1,3928.6,3.0]
[1733986123997,0.7802,3929.0,3928.6,3.0]
[1733986125803,0.26565879,3928.9,3928.6,3.0]
[1733986128248,0.7802,3928.8,3928.2,3.0]
[1733986129110,0.35911188,3928.7,3928.1,2.8083846]
[1733986130765,0.35911188,3928.7,3927.7,4.06291682]
[1733986130766,0.7802,3928.6,3927.7,4.06291682]
[1733986133265,0.7802,3928.6,3927.8,3.0]
[1733986133425,0.7802,3928.6,3927.7,4.06291682]
[1733986134673,2.54549,3928.6,3927.7,4.06291682]
[1733986134823,1.05836019,3928.5,3927.7,3.0]
[1733986135557,0.7679,3928.5,3927.6,4.06291682]
[1733986135941,0.13284482,3928.4,3927.6,4.06291682]
[1733986136144,0.13284482,3928.4,3927.6,1.06291682]
[1733986136765,0.13284482,3928.4,3927.5,4.88081682]
[1733986136941,0.13284482,3928.4,3927.6,1.06291682]
[1733986137500,0.13284482,3928.4,3928.0,1.32263631]
[1733986145078,0.13284482,3928.4,3928.3,1.32263631]
[1733986146187,0.7679,3929.6,3928.5,2.54548]
[1733986146492,1.05613604,3930.1,3928.4,1.32263631]
[1733986146493,2.54492,3929.4,3928.4,1.32263631]
[1733986146776,1.0054728,3929.3,3928.4,1.32263631]
[1733986146976,1.0054728,3929.3,3928.1,6.60866682]
[1733986146977,0.7679,3929.2,3928.1,6.60866682]
[1733986147179,0.7679,3929.2,3928.4,1.32263631]
[1733986149451,0.2379126,3929.1,3928.4,1.32263631]
[1733986149685,0.7679,3929.2,3928.4,1.32263631]
[1733986149861,0.23791337,3929.1,3928.4,1.32263631]
[1733986150186,0.7679,3929.2,3928.4,1.32263631]
[1733986150361,0.23800458,3929.1,3928.4,1.32263631]
[1733986150561,0.7679,3929.2,3928.4,1.32263631]
[1733986150772,0.23800742,3929.1,3928.4,1.32263631]
[1733986150979,0.7679,3929.2,3928.4,1.32263631]
[1733986151284,2.54518,3929.0,3928.2,1.32263631]
[1733986151482,1.08641874,3928.9,3928.2,1.32263631]
[1733986152008,0.27831874,3928.9,3927.8,1.06291682]
[1733986152214,0.8081,3928.7,3928.0,1.32263631]
[1733986152380,0.23806995,3928.6,3928.0,1.32263631]
[1733986152579,0.8081,3928.7,3928.0,1.32263631]
[1733986152779,0.23810616,3928.6,3928.0,1.32263631]
[1733986153010,0.8081,3928.7,3928.0,1.32263631]
[1733986153587,0.23811509,3928.6,3928.0,1.32263631]
[1733986153810,0.35915251,3928.5,3928.0,1.32263631]
[1733986154712,0.8081,3928.7,3928.0,1.32263631]
[1733986155112,0.23810989,3928.6,3928.0,1.32263631]
[1733986155283,0.8081,3928.7,3928.0,1.32263631]
[1733986156085,0.8081,3928.7,3928.3,1.32263631]
[1733986156293,2.54497,3929.4,3927.7,4.06291682]
[1733986156294,0.8081,3929.3,3928.6,1.32263631]
[1733986156519,0.34858856,3929.2,3928.3,4.32263631]
[1733986156814,0.23810087,3929.1,3928.3,4.32263631]
[1733986157017,0.23810087,3929.0,3928.3,4.32263631]
[1733986157187,0.8081,3929.3,3928.3,4.32263631]
[1733986157382,0.23809251,3929.2,3928.3,1.32263631]
[1733986157579,1.04619251,3929.1,3928.3,1.32263631]
[1733986157784,0.23809251,3929.0,3928.3,1.32263631]
[1733986157984,0.8081,3929.1,3928.3,1.32263631]
[1733986158320,0.23809424,3929.0,3928.3,1.32263631]
[1733986158500,0.8081,3929.1,3928.3,1.32263631]
[1733986158708,0.23808652,3929.0,3928.3,1.32263631]
[1733986158904,0.8081,3929.1,3928.3,2.19645662]